fUST/lending_fUST_20241029
["ID","MTS","AMOUNT","RATE_DAILY","PERIOD"]
[340948277,1730146245013,-515.58,0.00026027,4]
[340948278,1730146245024,-366.15428,0.00026027,7]
[340948279,1730146245034,-366.15428,0.00026027,7]
[340948280,1730146245044,-500.0,0.00026027,4]
[340948281,1730146245054,-500.0,0.00026027,4]
[340948282,1730146245063,-550.36,0.00026027,4]
[340948283,1730146245072,-500.0,0.00026027,4]
[340948284,1730146245083,-500.0,0.00026027,4]
[340948285,1730146245093,-500.0,0.00026027,4]
[340948286,1730146245102,-500.0,0.00026027,4]
[340948287,1730146245111,-810.19,0.00026027,4]
[340948288,1730146245123,-500.0,0.00026027,4]
[340948289,1730146245132,-220.28,0.00026027,4]
[340948290,1730146245141,-500.0,0.00026027,4]
[340948291,1730146245151,-1000.0,0.00026042,2]
[340948292,1730146245160,-151.282783,0.00026059,2]
[340948293,1730146245170,-201.372746,0.00026059,2]
[340948294,1730146245180,-150.0,0.00026101,2]
[340948295,1730146245190,-150.0,0.00026163,2]
[340948296,1730146245199,-150.0,0.00026163,2]
[340948297,1730146245209,-150.376,0.00026163,2]
[340948298,1730146245219,-165.31,0.00026163,2]
[340948299,1730146245229,-500.0,0.00026301,4]
[340948300,1730146245239,-500.0,0.00026301,4]
[340948301,1730146245248,-500.0,0.00026301,4]
[340948302,1730146245258,-500.0,0.00026301,4]
[340948303,1730146245269,-510.02888362,0.00026301,4]
[340948304,1730146245279,-500.0,0.00026301,4]
[340948305,1730146245289,-500.0,0.00026301,4]
[340948306,1730146245301,-500.0,0.00026301,4]
[340948307,1730146245311,-500.0,0.00026301,4]
[340948308,1730146245322,-540.10687247,0.00026301,4]
[340948309,1730146245332,-500.0,0.00026301,4]
[340948310,1730146245341,-500.0,0.00026301,4]
[340948311,1730146245351,-500.0,0.00026301,4]
[340948312,1730146245360,-500.0,0.00026301,4]
[340948313,1730146245371,-500.0,0.00026301,4]
[340948314,1730146245380,-500.0,0.00026301,4]
[340948315,1730146245390,-500.0,0.00026301,4]
[340948316,1730146245399,-1273.6,0.00026301,4]
[340948317,1730146245409,-500.0,0.00026301,4]
[340948318,1730146245419,-665.17,0.00026301,4]
[340948319,1730146245429,-1570.32,0.00026301,4]
[340948320,1730146245438,-500.0,0.00026301,4]
[340948321,1730146245448,-500.0,0.00026301,4]
[340948322,1730146245458,-500.0,0.00026301,4]
[340948323,1730146245469,-500.0,0.00026301,4]
[340948324,1730146245479,-500.0,0.00026301,4]
[340948325,1730146245489,-500.0,0.00026301,4]
[340948326,1730146245498,-500.0,0.00026301,4]
[340948327,1730146245508,-515.58,0.00026301,4]
[340948328,1730146245518,-500.0,0.00026301,4]
[340948329,1730146245527,-500.0,0.00026301,4]
[340948330,1730146245537,-550.36,0.00026301,4]
[340948331,1730146245547,-265.94529112,0.00026301,4]
[340948332,1730146245557,-500.0,0.00026301,4]
[340948333,1730146245567,-500.0,0.00026301,4]
[340948334,1730146245577,-500.0,0.00026301,4]
[340948335,1730146245587,-810.19,0.00026301,4]
[340948336,1730146245597,-500.0,0.00026301,4]
[340948338,1730146245606,-500.0,0.00026301,4]
[340948339,1730146245616,-151.0,0.00026301,7]
[340948340,1730146245627,-500.0,0.00026342,2]
[340948341,1730146245635,-1000.0,0.00026342,2]
[340948342,1730146245645,-1000.0,0.00026542,2]
[340948343,1730146245654,-187.49513719,0.00026575,4]
[340948344,1730146245663,-643.48,0.00026575,4]
[340948345,1730146245673,-500.0,0.00026575,4]
[340948346,1730146245683,-633.69,0.00026575,4]
[340948347,1730146245693,-500.0,0.00026575,4]
[340948348,1730146245704,-322.41074001,0.00026575,4]
[340948349,1730146245714,-500.0,0.00026575,4]
[340948350,1730146245723,-355.76,0.00026575,4]
[340948351,1730146245733,-500.0,0.00026575,4]
[340948352,1730146245743,-390.47,0.00026575,4]
[340948353,1730146245753,-500.0,0.00026575,4]
[340948354,1730146245763,-500.0,0.00026575,4]
[340948355,1730146245776,-517.35,0.00026575,4]
[340948356,1730146245786,-500.0,0.00026575,4]
[340948357,1730146245796,-500.0,0.00026575,4]
[340948358,1730146245805,-1273.6,0.00026575,4]
[340948359,1730146245817,-500.0,0.00026575,4]
[340948360,1730146245827,-665.17,0.00026575,4]
[340948361,1730146245838,-1570.32,0.00026575,4]
[340948362,1730146245848,-500.0,0.00026575,4]
[340948363,1730146245858,-500.0,0.00026575,4]
[340948364,1730146245868,-500.0,0.00026575,4]
[340948365,1730146245879,-500.0,0.00026575,4]
[340948366,1730146245889,-506.91,0.00026575,4]
[340948367,1730146245899,-500.0,0.00026575,4]
[340948368,1730146245909,-500.0,0.00026575,4]
[340948370,1730146245918,-515.58,0.00026575,4]
[340948372,1730146245928,-259.855488,0.00026575,7]
[340948373,1730146245938,-212.754161,0.00026575,7]
[340948375,1730146245948,-259.855488,0.00026575,7]
[340948377,1730146245958,-212.754161,0.00026575,7]
[340948380,1730146245968,-500.0,0.00026575,4]
[340948382,1730146245978,-500.0,0.00026575,4]
[340948384,1730146245988,-550.36,0.00026575,4]
[340948385,1730146245999,-193.269162,0.00026575,7]
[340948388,1730146246010,-193.269162,0.00026575,7]
[340948390,1730146246020,-510.2082161,0.00026575,4]
[340948392,1730146246031,-500.0,0.00026575,4]
[340948394,1730146246042,-500.0,0.00026575,4]
[340948396,1730146246053,-810.19,0.00026575,4]
[340948398,1730146246067,-500.0,0.00026575,4]
[340948400,1730146246078,-500.0,0.00026575,4]
[340948402,1730146246089,-420.0,0.00026709,2]
[340948404,1730146246100,-151.0,0.00026739,7]
[340948406,1730146246110,-151.0,0.00026739,7]
[340948408,1730146246120,-366.15428,0.00026739,7]
[340948410,1730146246137,-366.15428,0.00026739,7]
[340948411,1730146246146,-151.0,0.00026839,7]
[340948413,1730146246156,-151.0,0.00026839,7]
[340948415,1730146246167,-151.0,0.00026839,7]
[340948417,1730146246176,-393.986144,0.00026839,7]
[340948418,1730146246186,-393.986144,0.00026839,7]
[340948420,1730146246196,-151.0,0.00026839,7]
[340948422,1730146246205,-161.933641,0.00026839,7]
[340948424,1730146246215,-161.933641,0.00026839,7]
[340948426,1730146246226,-500.0,0.00026849,4]
[340948428,1730146246235,-500.0,0.00026849,4]
[340948430,1730146246246,-500.0,0.00026849,4]
[340948432,1730146246256,-211.78,0.00026849,4]
[340948434,1730146246265,-500.0,0.00026849,4]
[340948436,1730146246274,-589.8,0.00026849,4]
[340948437,1730146246283,-525.09,0.00026849,4]
[340948439,1730146246294,-1273.6,0.00026849,4]
[340948441,1730146246304,-500.0,0.00026849,4]
[340948443,1730146246313,-665.17,0.00026849,4]
[340948445,1730146246324,-1570.32,0.00026849,4]
[340948447,1730146246334,-500.0,0.00026849,4]
[340948449,1730146246344,-621.19736723,0.00026849,4]
[340948451,1730146246353,-500.0,0.00026849,4]
[340948453,1730146246364,-500.0,0.00026849,4]
[340948455,1730146246377,-500.0,0.00026849,4]
[340948457,1730146246386,-500.0,0.00026849,4]
[340948459,1730146246396,-515.58,0.00026849,4]
[340948461,1730146246405,-500.0,0.00026849,4]
[340948463,1730146246415,-550.36,0.00026849,4]
[340948464,1730146246424,-500.0,0.00026849,4]
[340948466,1730146246434,-441.49,0.00026849,4]
[340948468,1730146246444,-810.19,0.00026849,4]
[340948470,1730146246454,-246.57813001,0.00026849,4]
[340948472,1730146246464,-431.6398456,0.00026849,4]
[340948474,1730146246474,-153.0,0.00026849,2]
[340948476,1730146246484,-150.112245,0.000269,19]
[340948478,1730146246493,-151.0,0.00027097,7]
[340948480,1730146246502,-151.0,0.00027097,7]
[340948482,1730146246512,-3880.502016,0.00027106,2]
[340948483,1730146246522,-151.0,0.00027106,7]
[340948486,1730146246532,-156.440351,0.00027106,7]
[340948487,1730146246542,-156.440351,0.00027106,7]
[340948489,1730146246553,-172.422767,0.00027106,7]
[340948491,1730146246563,-172.422767,0.00027106,7]
[340948493,1730146246573,-47999.616304,0.00027107,2]
[340948507,1730146246704,-151.0,0.00025184,7]
[340948509,1730146246715,-151.0,0.00025459,7]
[340948511,1730146246725,-197.9980496,0.00027107,2]
[340948518,1730146246789,-151.0,0.00025184,7]
[340948520,1730146246799,-151.0,0.00025459,7]
[340948522,1730146246808,-151.0,0.00026301,7]
[340948524,1730146246817,-151.0,0.00026301,7]
[340948526,1730146246827,-23398.92415995,0.00027107,2]
[340948530,1730146246863,-371.15357149,0.00024657,4]
[340948551,1730146324403,157.518062,0.00013973,2]
[340948571,1730146919678,161.895351,0.00013973,2]
[340948582,1730147149134,-174.592073,0.00023211,2]
[340948583,1730147149157,-217.39860532,0.00023334,2]
[340948587,1730147232099,-300.0,0.00023334,2]
[340948588,1730147232122,-53.33321013,0.00023334,2]
[340948590,1730147238116,-246.66678987,0.00023334,2]
[340948591,1730147238138,-398.38753468,0.00023335,2]
[340948592,1730147240097,-353.68374452,0.00023335,2]
[340948593,1730147246101,-488.55930984,0.00023335,2]
[340948595,1730147249134,-297.65796703,0.00023335,2]
[340948610,1730147324335,999.999999,0.00035654,30]
[340948612,1730147325948,-11165.0,0.00020377,2]
[340948615,1730147345106,-300.0,0.00020376,2]
[340948616,1730147345132,-300.0,0.00020376,2]
[340948617,1730147345154,-36118.81751933,0.00020377,2]
[340948618,1730147345176,-200.19400732,0.0002061,2]
[340948619,1730147345197,-233.77501201,0.00022179,2]
[340948620,1730147353133,-186.22498799,0.00022179,2]
[340948621,1730147353157,-80.79716593,0.00022414,2]
[340948622,1730147354371,-339.20283407,0.00022414,2]
[340948623,1730147354396,-160.8892045,0.00022709,2]
[340948628,1730147367135,-150.999998,0.00023,2]
[340948629,1730147367159,-23361.71144393,0.00023335,2]
[340948630,1730147367183,-246.404684,0.00023335,2]
[340948631,1730147367207,-109.63276905,0.00023471,2]
[340948634,1730147393776,157.518062,0.00013973,2]
[340948660,1730147432248,-123.07690905,0.00023471,2]
[340948661,1730147432258,-163.531202,0.0002351,2]
[340948662,1730147432267,-163.531202,0.00023918,2]
[340948663,1730147432276,-163.531202,0.00024327,2]
[340948664,1730147432285,-151.282783,0.00024583,2]
[340948665,1730147432294,-201.372747,0.00024583,2]
[340948666,1730147432303,-151.282783,0.00024583,2]
[340948667,1730147432312,-151.282783,0.00024583,2]
[340948668,1730147432323,-203.203615,0.00024583,2]
[340948669,1730147432335,-191.0,0.00024656,2]
[340948670,1730147432344,-300.0,0.00024656,2]
[340948671,1730147432353,-252.10971575,0.00024657,2]
[340948672,1730147432364,-500.0,0.00024657,4]
[340948673,1730147432374,-500.0,0.00024657,4]
[340948674,1730147432383,-500.0,0.00024657,4]
[340948675,1730147432393,-500.0,0.00024657,4]
[340948676,1730147432402,-506.62385232,0.00024657,4]
[340948677,1730147432413,-500.0,0.00024657,4]
[340948678,1730147432422,-500.0,0.00024657,4]
[340948679,1730147432432,-156.69175445,0.00024657,4]
[340948685,1730147438522,-343.30824555,0.00024657,4]
[340948686,1730147438532,-500.0,0.00024657,4]
[340948687,1730147438541,-633.26,0.00024657,4]
[340948688,1730147438551,-500.0,0.00024657,4]
[340948689,1730147438560,-500.0,0.00024657,4]
[340948690,1730147438569,-500.0,0.00024657,4]
[340948691,1730147438581,-500.0,0.00024657,4]
[340948692,1730147438590,-500.0,0.00024657,4]
[340948693,1730147438600,-500.0,0.00024657,4]
[340948694,1730147438609,-500.0,0.00024657,4]
[340948695,1730147438619,-500.0,0.00024657,4]
[340948696,1730147438628,-500.0,0.00024657,4]
[340948697,1730147438638,-500.0,0.00024657,4]
[340948698,1730147438647,-500.0,0.00024657,4]
[340948699,1730147438657,-500.0,0.00024657,4]
[340948700,1730147438667,-500.0,0.00024657,4]
[340948701,1730147438677,-500.0,0.00024657,4]
[340948702,1730147438687,-500.0,0.00024657,4]
[340948703,1730147438697,-500.0,0.00024657,4]
[340948704,1730147438706,-500.0,0.00024657,4]
[340948705,1730147438716,-500.0,0.00024657,4]
[340948706,1730147438725,-500.0,0.00024657,4]
[340948707,1730147438735,-500.0,0.00024657,4]
[340948708,1730147438745,-500.0,0.00024657,4]
[340948709,1730147438755,-500.0,0.00024657,4]
[340948710,1730147438765,-500.0,0.00024657,4]
[340948711,1730147438775,-500.0,0.00024657,4]
[340948712,1730147438785,-500.0,0.00024657,4]
[340948713,1730147438795,-500.0,0.00024657,4]
[340948714,1730147438804,-500.0,0.00024657,4]
[340948715,1730147438814,-500.0,0.00024657,4]
[340948716,1730147438823,-500.0,0.00024657,4]
[340948717,1730147438834,-500.0,0.00024657,4]
[340948718,1730147438843,-500.0,0.00024657,4]
[340948719,1730147438853,-500.0,0.00024657,4]
[340948720,1730147438863,-500.0,0.00024657,4]
[340948721,1730147438873,-500.0,0.00024657,4]
[340948722,1730147438884,-500.0,0.00024657,4]
[340948723,1730147438895,-500.0,0.00024657,4]
[340948724,1730147438905,-500.0,0.00024657,4]
[340948725,1730147438915,-500.0,0.00024657,4]
[340948726,1730147438924,-500.0,0.00024657,4]
[340948727,1730147438934,-500.0,0.00024657,4]
[340948728,1730147438944,-500.0,0.00024657,4]
[340948729,1730147438954,-643.94191788,0.00024657,4]
[340948730,1730147438964,-500.0,0.00024657,4]
[340948731,1730147438974,-500.0,0.00024657,4]
[340948732,1730147438985,-500.0,0.00024657,4]
[340948733,1730147438997,-500.0,0.00024657,4]
[340948734,1730147439007,-433.3488844,0.00024657,4]
[340948735,1730147439017,-500.0,0.00024657,4]
[340948736,1730147439027,-500.0,0.00024657,4]
[340948737,1730147439037,-500.0,0.00024657,4]
[340948738,1730147439046,-500.0,0.00024657,4]
[340948739,1730147439055,-500.0,0.00024657,4]
[340948740,1730147439065,-500.0,0.00024657,4]
[340948741,1730147439074,-500.0,0.00024657,4]
[340948742,1730147439085,-317.28238902,0.00024657,4]
[340948743,1730147439095,-500.0,0.00024657,4]
[340948744,1730147439104,-500.0,0.00024657,4]
[340948745,1730147439114,-500.0,0.00024657,4]
[340948746,1730147439122,-500.0,0.00024657,4]
[340948747,1730147439132,-500.0,0.00024657,4]
[340948748,1730147439141,-500.0,0.00024657,4]
[340948749,1730147439151,-500.0,0.00024657,4]
[340948750,1730147439161,-500.0,0.00024657,4]
[340948751,1730147439171,-500.0,0.00024657,4]
[340948752,1730147439181,-500.0,0.00024657,4]
[340948753,1730147439190,-500.0,0.00024657,4]
[340948754,1730147439199,-723.67,0.00024657,4]
[340948755,1730147439210,-500.0,0.00024657,4]
[340948756,1730147439220,-500.0,0.00024657,4]
[340948757,1730147439230,-500.0,0.00024657,4]
[340948758,1730147439239,-1374.03,0.00024657,4]
[340948759,1730147439248,-500.0,0.00024657,4]
[340948760,1730147439257,-500.0,0.00024657,4]
[340948761,1730147439266,-1161.05,0.00024657,4]
[340948762,1730147439276,-500.0,0.00024657,4]
[340948763,1730147439286,-500.0,0.00024657,4]
[340948764,1730147439295,-500.0,0.00024657,4]
[340948765,1730147439304,-500.0,0.00024657,4]
[340948766,1730147439314,-500.0,0.00024657,4]
[340948767,1730147439323,-500.0,0.00024657,4]
[340948768,1730147439336,-500.0,0.00024657,4]
[340948769,1730147439346,-500.0,0.00024657,4]
[340948770,1730147439355,-501.43284749,0.00024657,4]
[340948771,1730147439365,-500.0,0.00024657,4]
[340948772,1730147439375,-500.0,0.00024657,4]
[340948773,1730147439385,-500.0,0.00024657,4]
[340948774,1730147439395,-500.0,0.00024657,4]
[340948775,1730147439404,-500.0,0.00024657,4]
[340948776,1730147439415,-500.0,0.00024657,4]
[340948777,1730147439425,-500.0,0.00024657,4]
[340948778,1730147439434,-500.0,0.00024657,2]
[340948779,1730147439444,-500.0,0.00024657,4]
[340948780,1730147439454,-500.0,0.00024657,4]
[340948781,1730147439464,-500.0,0.00024657,4]
[340948782,1730147439474,-500.0,0.00024657,4]
[340948783,1730147439484,-500.0,0.00024657,4]
[340948784,1730147439494,-500.0,0.00024657,4]
[340948785,1730147439503,-500.0,0.00024657,4]
[340948786,1730147439513,-500.0,0.00024657,4]
[340948787,1730147439522,-500.0,0.00024657,4]
[340948788,1730147439531,-500.0,0.00024657,4]
[340948789,1730147439540,-500.0,0.00024657,4]
[340948790,1730147439549,-500.0,0.00024657,4]
[340948791,1730147439559,-500.0,0.00024657,4]
[340948792,1730147439569,-500.0,0.00024657,4]
[340948793,1730147439578,-500.0,0.00024657,4]
[340948794,1730147439588,-917.35,0.00024657,4]
[340948795,1730147439598,-500.0,0.00024657,4]
[340948796,1730147439607,-500.0,0.00024657,4]
[340948797,1730147439617,-500.0,0.00024657,4]
[340948798,1730147439628,-658.48,0.00024657,4]
[340948799,1730147439637,-500.0,0.00024657,4]
[340948800,1730147439647,-500.0,0.00024657,4]
[340948801,1730147439657,-500.0,0.00024657,4]
[340948802,1730147439666,-500.0,0.00024657,4]
[340948803,1730147439677,-500.0,0.00024657,4]
[340948804,1730147439686,-500.0,0.00024657,4]
[340948805,1730147439696,-500.0,0.00024657,4]
[340948806,1730147439706,-500.0,0.00024657,4]
[340948807,1730147439715,-500.0,0.00024657,4]
[340948809,1730147439725,-500.0,0.00024657,4]
[340948810,1730147439734,-500.0,0.00024657,4]
[340948811,1730147439744,-500.0,0.00024657,4]
[340948812,1730147439753,-500.0,0.00024657,4]
[340948813,1730147439762,-500.0,0.00024657,4]
[340948814,1730147439771,-500.0,0.00024657,4]
[340948815,1730147439781,-557.4409,0.00024657,4]
[340948816,1730147439790,-500.0,0.00024657,4]
[340948817,1730147439800,-500.0,0.00024657,4]
[340948818,1730147439810,-500.0,0.00024657,4]
[340948819,1730147439819,-500.0,0.00024657,4]
[340948820,1730147439830,-500.0,0.00024657,4]
[340948821,1730147439839,-500.0,0.00024657,4]
[340948822,1730147439849,-500.0,0.00024657,4]
[340948823,1730147439859,-500.0,0.00024657,4]
[340948825,1730147439869,-500.0,0.00024657,4]
[340948826,1730147439879,-500.0,0.00024657,4]
[340948827,1730147439889,-200.0,0.00024657,4]
[340948828,1730147439898,-500.0,0.00024657,4]
[340948829,1730147439908,-500.0,0.00024657,4]
[340948830,1730147439918,-300.0,0.00024658,2]
[340948831,1730147439927,-163.531202,0.00024735,2]
[340948832,1730147439936,-517.04,0.0002488,3]
[340948833,1730147439946,-401.57,0.0002488,10]
[340948834,1730147439956,-174.40279144,0.00024889,2]
[340948835,1730147439966,-303.59926068,0.00024889,2]
[340948836,1730147439975,-527.44453543,0.00024889,2]
[340948837,1730147439986,-415.96620457,0.00024889,2]
[340948838,1730147439996,-500.0,0.00024889,2]
[340948839,1730147440006,-642.43726996,0.00024889,2]
[340948840,1730147440016,-500.0,0.00024889,2]
[340948841,1730147440026,-500.0,0.00024889,2]
[340948842,1730147440035,-500.0,0.00024889,2]
[340948844,1730147440044,-500.0,0.00024889,2]
[340948845,1730147440053,-500.0,0.00024889,2]
[340948846,1730147440064,-500.0,0.00024889,2]
[340948847,1730147440073,-369.32625705,0.00024889,2]
[340948848,1730147440083,-26096.2093746,0.0002489,3]
[340948849,1730147440092,-21966.5435108,0.0002489,3]
[340948850,1730147440102,-26096.2093746,0.00024921,3]
[340948851,1730147440111,-21966.5435108,0.00024921,3]
[340948852,1730147440121,-500.0,0.00024931,4]
[340948853,1730147440131,-500.0,0.00024931,4]
[340948854,1730147440140,-211.78,0.00024931,4]
[340948856,1730147440150,-500.0,0.00024931,4]
[340948857,1730147440160,-644.42,0.00024931,4]
[340948858,1730147440169,-500.0,0.00024931,4]
[340948859,1730147440179,-628.28926214,0.00024931,4]
[340948860,1730147440188,-500.0,0.00024931,4]
[340948861,1730147440197,-500.0,0.00024931,4]
[340948862,1730147440206,-500.0,0.00024931,4]
[340948863,1730147440216,-500.0,0.00024931,4]
[340948864,1730147440226,-500.0,0.00024931,4]
[340948865,1730147440235,-500.0,0.00024931,4]
[340948866,1730147440246,-500.0,0.00024931,4]
[340948867,1730147440256,-500.0,0.00024931,4]
[340948868,1730147440266,-500.0,0.00024931,4]
[340948869,1730147440275,-210.98,0.00024931,4]
[340948870,1730147440285,-500.0,0.00024931,4]
[340948871,1730147440295,-500.0,0.00024931,4]
[340948872,1730147440305,-623.33484917,0.00024931,4]
[340948873,1730147440315,-500.0,0.00024931,4]
[340948874,1730147440325,-500.0,0.00024931,4]
[340948875,1730147440338,-500.0,0.00024931,4]
[340948876,1730147440347,-506.2638029,0.00024931,4]
[340948877,1730147440357,-500.0,0.00024931,4]
[340948878,1730147440367,-500.0,0.00024931,4]
[340948879,1730147440377,-561.61,0.00024931,4]
[340948880,1730147440387,-500.0,0.00024931,4]
[340948881,1730147440397,-500.0,0.00024931,4]
[340948882,1730147440407,-500.0,0.00024931,4]
[340948883,1730147440417,-500.0,0.00024931,4]
[340948884,1730147440427,-723.67,0.00024931,4]
[340948885,1730147440437,-500.0,0.00024931,4]
[340948886,1730147440447,-1374.03,0.00024931,4]
[340948887,1730147440456,-1161.05,0.00024931,4]
[340948888,1730147440465,-500.0,0.00024931,4]
[340948889,1730147440475,-500.0,0.00024931,4]
[340948890,1730147440485,-500.0,0.00024931,4]
[340948891,1730147440495,-500.0,0.00024931,4]
[340948892,1730147440504,-500.0,0.00024931,4]
[340948893,1730147440513,-500.0,0.00024931,4]
[340948894,1730147440523,-500.0,0.00024931,4]
[340948895,1730147440532,-500.0,0.00024931,4]
[340948896,1730147440541,-500.0,0.00024931,4]
[340948897,1730147440551,-500.0,0.00024931,4]
[340948898,1730147440561,-207.71493501,0.00024931,2]
[340948899,1730147440571,-500.0,0.00024931,4]
[340948900,1730147440581,-360.07275156,0.00024931,4]
[340948901,1730147440591,-500.0,0.00024931,4]
[340948902,1730147440601,-500.0,0.00024931,4]
[340948903,1730147440610,-500.0,0.00024931,4]
[340948904,1730147440619,-500.0,0.00024931,4]
[340948905,1730147440629,-500.0,0.00024931,4]
[340948906,1730147440638,-500.0,0.00024931,4]
[340948907,1730147440648,-500.0,0.00024931,4]
[340948908,1730147440657,-500.0,0.00024931,4]
[340948909,1730147440667,-500.0,0.00024931,4]
[340948910,1730147440676,-917.35,0.00024931,4]
[340948911,1730147440685,-500.0,0.00024931,4]
[340948912,1730147440695,-500.0,0.00024931,4]
[340948913,1730147440704,-658.48,0.00024931,4]
[340948914,1730147440713,-500.0,0.00024931,4]
[340948915,1730147440722,-620.42,0.00024931,4]
[340948916,1730147440732,-576.34,0.00024931,4]
[340948917,1730147440741,-500.0,0.00024931,4]
[340948918,1730147440751,-500.0,0.00024931,4]
[340948919,1730147440880,-500.0,0.00024931,4]
[340948920,1730147440893,-500.0,0.00024931,4]
[340948921,1730147440902,-500.0,0.00024931,4]
[340948922,1730147440912,-500.0,0.00024931,4]
[340948923,1730147440921,-500.0,0.00024931,4]
[340948924,1730147440930,-500.0,0.00024931,4]
[340948925,1730147440939,-500.0,0.00024931,4]
[340948926,1730147440948,-620.97,0.00024931,4]
[340948927,1730147440958,-500.0,0.00024931,4]
[340948928,1730147440967,-500.0,0.00024931,4]
[340948929,1730147440976,-500.0,0.00024931,4]
[340948930,1730147440985,-500.0,0.00024931,4]
[340948931,1730147440995,-500.0,0.00024931,4]
[340948932,1730147441004,-500.0,0.00024931,4]
[340948933,1730147441014,-500.0,0.00024931,4]
[340948934,1730147441023,-500.0,0.00024931,4]
[340948935,1730147441032,-500.0,0.00024931,4]
[340948936,1730147441042,-500.0,0.00024931,4]
[340948937,1730147441052,-150.25097901,0.00024973,2]
[340948938,1730147441061,-500.0,0.00024973,2]
[340948939,1730147441070,-151.282783,0.00024993,2]
[340948940,1730147441079,-8076.13965502,0.00025,2]
[340948941,1730147441089,-500.0,0.00025001,30]
[340948942,1730147441098,-500.0,0.00025001,30]
[340948943,1730147441108,-500.0,0.00025001,30]
[340948944,1730147441117,-500.0,0.00025001,30]
[340948945,1730147441128,-500.0,0.00025001,30]
[340948946,1730147441137,-500.0,0.00025062,2]
[340948947,1730147441146,-500.0,0.00025117,2]
[340948948,1730147441156,-500.0,0.00025117,2]
[340948949,1730147441165,-500.0,0.00025117,2]
[340948950,1730147441174,-500.0,0.00025144,2]
[340948951,1730147441183,-500.0,0.00025194,2]
[340948952,1730147441193,-438.67004668,0.00025194,2]
[340948953,1730147441202,-500.0,0.00025194,2]
[340948954,1730147441211,-248.22264862,0.00025194,2]
[340948955,1730147441221,-500.0,0.00025194,2]
[340948956,1730147441230,-26096.2093746,0.00025195,3]
[340948957,1730147441240,-21966.5435108,0.00025195,3]
[340948958,1730147441249,-500.0,0.00025205,4]
[340948959,1730147441258,-500.0,0.00025205,4]
[340948960,1730147441267,-500.0,0.00025205,4]
[340948961,1730147441277,-361.80775396,0.00025205,4]
[340948962,1730147441287,-500.0,0.00025205,4]
[340948963,1730147441296,-500.0,0.00025205,4]
[340948964,1730147441305,-500.0,0.00025205,4]
[340948965,1730147441314,-500.0,0.00025205,4]
[340948966,1730147441323,-500.0,0.00025205,4]
[340948967,1730147441335,-500.0,0.00025205,4]
[340948968,1730147441344,-500.0,0.00025205,4]
[340948969,1730147441353,-500.0,0.00025205,4]
[340948970,1730147441362,-500.0,0.00025205,4]
[340948971,1730147441371,-500.0,0.00025205,4]
[340948972,1730147441381,-579.7,0.00025205,4]
[340948973,1730147441390,-500.0,0.00025205,4]
[340948974,1730147441399,-500.0,0.00025205,4]
[340948975,1730147441410,-500.0,0.00025205,4]
[340948976,1730147441419,-723.67,0.00025205,4]